{"text_format":"1","workbook":"xlsx","n_sheets":2,"sheets":["Anleitungen","Phosphat"],"not_rendered":{"charts":0,"images":4,"macros":1,"external_links":0,"defined_names":3,"comments":0,"pivot_tables":0},"unopened":[],"bounds":{"document_bytes":16777216,"sheet_cells":100000,"rows_first":2000,"rows_last":500,"rows_between":2000,"halvings":0,"cell_chars":16384,"cell_head_chars":4096},"cells_cut":0,"cells_raw":0,"read":"whole","date_system":"1900"}

{"sheet":"Anleitungen","index":0,"n_rows":21,"n_cols":4,"rows_kept":21,"cut":false,"hidden":false,"merged":[[10,3,10,7],[1,0,1,10],[2,0,2,10],[3,0,3,10],[4,6,4,10],[5,3,5,7],[6,3,6,7],[7,3,7,7],[8,3,8,7],[9,3,9,7],[10,1,10,2],[5,1,5,2],[6,1,6,2],[7,1,7,2],[8,1,8,2],[9,1,9,2]]}
[]
["1. EINLEITUNG\nFür Schläge größer 1 Hektar ist mindestens alle 6 Jahre der Phosphat-Gehalt in der Krume (0 bis 30 cm) zu ermitteln, sofern mehr als 30 kg Phosphat (P2O5) je Hektar und Jahr ausgebracht werden (§ 4 (4) DüV). \nNeu hingegen ist die Regelung, dass auf mit Phosphat überversorgten Böden nur noch der Entzug nachgeführt werden darf (§ 3 (6) DüV). Zeigt die Bodenanalyse für  Schläge größer 1 Hektar einen Phosphat-Gehalt von mehr als 20 mg P2O5/100g Boden nach CAL-Methode oder mehr als 3,6 mg P/100g Boden nach EUF-Methode an, darf die P-Nachdüngung nur noch in Höhe der Phosphat-Abfuhr der jeweiligen Kultur erfolgen. Dies betrifft im Weinbau 90 % der Oberböden von Rebanlagen. \nIm Weinbau beträgt die Phosphat-Abfuhr bei Normalertrag (10 t/ha) durch die Trauben lediglich 10 kg P2O5 pro Hektar und Jahr, da Reblaub und -holz in der Rebanlage verbleiben. Somit ergibt sich für den Weinbau in diesen Flächen eine Begrenzung auf maximal 30 kg P2O5 pro Hektar mit einer Dreijahresgabe an organischen Düngern oder als mineralische Vorratsgabe. \nAchtung Blattdüngung: Bei Kombination einer Humusdüngung mit einer Phosphat-haltigen Blattdüngung kann die Grenze von 30 kg P2O5/ha und Jahr überschritten werden. Demzufolge ist eine Phosphat-Düngebedarfsermittlung zu erstellen! P2O5-haltige Pflanzenschutzmittel unterliegen NICHT der Düngeverordnung und sind damit für die Phosphat-Düngebedarfsermittlung auf Schlägen größer 1 Hektar NICHT relevant!\n\nDefinition \"Schlag\" im Weinbau:\nEin Schlag ist im Sinne der DüV „eine einheitlich bewirtschaftete und räumlich zusammenhängende und mit der gleichen Pflanzenart bewachsene oder zur Bestellung vorgesehene Fläche“. Ein Schlag kann auch aus mehreren nebeneinanderliegenden Anlagen eines Bewirtschafters bestehen, die mit unterschiedlichen Rebsorten bestockt sind. Weinbergsmauern sowie unbefestigte Feld- und Zufahrtswege bilden KEINE Schlagtrennung. NUR befestigte Wirtschaftswege trennen unterschiedliche Schläge voneinander ab. "]
["2. HINWEISE ZUR BEDIENUNG\n• Die leere Excel-Datei ist als Original zu sichern und immer mit einer Kopie zu arbeiten.\n• Die Datei enthält Makros: bitte per Virenscanner vor dem ersten Gebrauch die Datei prüfen.\n• Die Datei wurde unter MS Excel vers. 2013 erstellt (Endung XLSM). Für die Kompatibilität mit anderen Programmen\n   wird keine Garantie übernommen.\n• Die Datei wurde für MS Excel vers. 2003 konvertiert (Endung XLS). Gemäß unseren Tests arbeitet die Datei korrekt unter\n  MS Excel vers. 2003 und neuer.\n• Beim Öffnen der Datei sind die Makros zu aktivieren.\n• Die Darstellung der Excel-Blätter ist für einen 24\" Monitor ausgelegt (Zoom-Faktor: 100 %).\n• Keine Zeilen löschen, nur per Schaltfläche neue hinzufügen. Im Bedarfsfall Zeilen leer lassen oder\n   mit einer leeren Kopie des Originals weiter arbeiten."]
["Tabelle 1:\nPhosphats-Gehaltsklassen mit P-Düngeempfehlungen für den Weinbau gemäß DüV 2017"]
[]
["Gehaltsklasse","P2O5\n(mg/100g Boden)",null,"P-Düngeempfehlung\n(bei Normalertrag bis 15.000 l/ha)"]
["A\nUnterversorgung","< 12",null,"30 kg P2O5/ha und Jahr"]
["B","entfällt",null,"entfällt"]
["C\nOptrimalversorgung","12 bis 20",null,"15 kg P2O5/ha und Jahr *"]
["D","entfällt",null,"entfällt"]
["E\nÜberversorgung","> 20",null,"10 kg P2O5/ha und Jahr **"]
[]
["*  Gehaltsklasse C:","Bei hohen Erträgen über 15.000 l/ha dürfen in der Gehaltsklasse C 20 kg P2O5/ha und Jahr nachgeführt werden!"]
[]
["** Gehaltsklasse E:","Generell sollen in der Gehaltsklasse E nur noch organische Dünger zur organischen N-Düngung in der Einjahresgabe"]
[null," (=Abfuhr) bzw. zur Humusnachfuhr über die Drei-Jahresgabe (=Abfuhr x 3) eingesetzt werden. Mineraliche Mehrnähr-"]
[null,"stoffdünger (z. B. NPK-Dünger) sollten in Phosphat-überversorten Weinbergen NICHT mehr zu Einsatz kommen."]
[null,"Bei hohen Erträgen über 15.000 l/ha dürfen in der Gehaltsklasse E 15kg P2O5/ha und Jahr organisch nachgeführt werden!"]
[]
[]
["Stand: 26.03.2018"]

{"sheet":"Phosphat","index":1,"n_rows":32,"n_cols":11,"rows_kept":32,"cut":false,"hidden":false,"merged":[[30,1,30,3],[18,1,18,3],[17,1,17,3],[19,1,19,3],[20,1,20,3],[21,1,21,3],[22,1,22,3],[23,1,23,3],[24,1,24,3],[25,1,25,3],[26,1,26,3],[27,1,27,3],[28,1,28,3],[29,1,29,3],[4,9,4,10],[6,10,6,11],[7,7,7,8],[7,5,8,5],[8,1,8,3],[8,9,8,14],[14,1,14,3],[15,1,15,3],[16,1,16,3],[7,6,8,6],[9,1,9,3],[10,1,10,3],[11,1,11,3],[12,1,12,3],[13,1,13,3]]}
["Phosphat-Düngebedarfsermittlung für Ertragsanlagen im Weinbau für Schläge ab 1 ha"]
[]
[null,null,"Betrieb:","Düngejahr:"]
[null,"Betriebsname","Weingut Immerdurst",2018]
[null,"Strasse Hausnr.","Doppelschoppen Str. 17",null,null,null,null,null,null,"     DLR Rheinpfalz"]
[null,"PLZ Ort","67000 Rieslinghausen",null,null,null,null,null,null,"Version:","1.0.0"]
[null,null,null,null,null,null,null,null,null,"     Stand:","2018-05-22"]
[null,null,null,null,null,"Jahr der\nBodenunter-suchung\n(0-30 cm)","P2O5\nin mg / 100 g\nBoden\n(CAL-Methode)","Düngebedarf pro Jahr\n(kg P2O5 / ha)"]
["lfd","Schlagbezeichnung",null,null,"Größe\n(m²)",null,null,"MINERALISCH","ORGANISCH","* Die Summe aus mineralischer und organischer Düngung\n   darf diesen Wert nicht überschreiten"]
[1,null,null,null,null,2000,null,{"$f":"IF(G10=\"\",\"\",IF(G10<12,\"30 *\",IF(G10<20,\"15 *\",0)))","v":""},{"$f":"IF(G10=\"\",\"\",IF(G10<12,\"30 *\",IF(G10<20,\"15 *\",10)))","v":""},{"$f":"IF(F10=\"\",\"\",IF($D$4-F10>6,\"Bodenuntersuchung älter 6 Jahre: neue Untersuchung erforderlich\",\"\"))","v":"Bodenuntersuchung älter 6 Jahre: neue Untersuchung erforderlich"}]
[{"$f":"A10+1","v":2},null,null,null,null,null,null,{"$f":"IF(G11=\"\",\"\",IF(G11<12,\"30 *\",IF(G11<20,\"15 *\",0)))","v":""},{"$f":"IF(G11=\"\",\"\",IF(G11<12,\"30 *\",IF(G11<20,\"15 *\",10)))","v":""},{"$f":"IF(F11=\"\",\"\",IF($D$4-F11>6,\"Bodenuntersuchung älter 6 Jahre: neue Untersuchung erforderlich\",\"\"))","v":""}]
[{"$f":"A11+1","v":3},null,null,null,null,null,null,"","",""]
[4,null,null,null,null,null,null,"","",""]
[5,null,null,null,null,null,null,"","",""]
[6,null,null,null,null,null,null,"","",""]
[7,null,null,null,null,null,null,"","",""]
[8,null,null,null,null,null,null,"","",""]
[{"$f":"A17+1","v":9},null,null,null,null,null,null,"",{"$f":"IF(G18=\"\",\"\",IF(G18<12,\"30 *\",IF(G18<20,\"15 *\",10)))","v":""},""]
[{"$f":"A18+1","v":10},null,null,null,null,null,null,"",{"$f":"IF(G19=\"\",\"\",IF(G19<12,\"30 *\",IF(G19<20,\"15 *\",10)))","v":""},""]
[{"$f":"A19+1","v":11},null,null,null,null,null,null,"",{"$f":"IF(G20=\"\",\"\",IF(G20<12,\"30 *\",IF(G20<20,\"15 *\",10)))","v":""},""]
[{"$f":"A20+1","v":12},null,null,null,null,null,null,"",{"$f":"IF(G21=\"\",\"\",IF(G21<12,\"30 *\",IF(G21<20,\"15 *\",10)))","v":""},""]
[{"$f":"A21+1","v":13},null,null,null,null,null,null,"",{"$f":"IF(G22=\"\",\"\",IF(G22<12,\"30 *\",IF(G22<20,\"15 *\",10)))","v":""},""]
[{"$f":"A22+1","v":14},null,null,null,null,null,null,"",{"$f":"IF(G23=\"\",\"\",IF(G23<12,\"30 *\",IF(G23<20,\"15 *\",10)))","v":""},""]
[{"$f":"A23+1","v":15},null,null,null,null,null,null,"",{"$f":"IF(G24=\"\",\"\",IF(G24<12,\"30 *\",IF(G24<20,\"15 *\",10)))","v":""},""]
[{"$f":"A24+1","v":16},null,null,null,null,null,null,"",{"$f":"IF(G25=\"\",\"\",IF(G25<12,\"30 *\",IF(G25<20,\"15 *\",10)))","v":""},""]
[{"$f":"A25+1","v":17},null,null,null,null,null,null,"",{"$f":"IF(G26=\"\",\"\",IF(G26<12,\"30 *\",IF(G26<20,\"15 *\",10)))","v":""},""]
[{"$f":"A26+1","v":18},null,null,null,null,null,null,"",{"$f":"IF(G27=\"\",\"\",IF(G27<12,\"30 *\",IF(G27<20,\"15 *\",10)))","v":""},""]
[{"$f":"A27+1","v":19},null,null,null,null,null,null,"",{"$f":"IF(G28=\"\",\"\",IF(G28<12,\"30 *\",IF(G28<20,\"15 *\",10)))","v":""},""]
[{"$f":"A28+1","v":20},null,null,null,null,null,null,"",{"$f":"IF(G29=\"\",\"\",IF(G29<12,\"30 *\",IF(G29<20,\"15 *\",10)))","v":""},""]
[21,null,null,null,null,null,null,{"$f":"IF(G30=\"\",\"\",IF(G30<12,\"30 *\",IF(G30<20,\"15 *\",0)))","v":""},{"$f":"IF(G30=\"\",\"\",IF(G30<12,\"30 *\",IF(G30<20,\"15 *\",10)))","v":""},{"$f":"IF(F30=\"\",\"\",IF($D$4-F30>6,\"Bodenuntersuchung älter 6 Jahre: neue Untersuchung erforderlich\",\"\"))","v":""}]
[]
["Ort, Datum, Unterschrift des Betriebsinhabers: "]